fUSD/lending_fUSD_20240819
["ID","MTS","AMOUNT","RATE_DAILY","PERIOD"]
[335295138,1724083832554,-651.16,0.00010508,2]
[335295139,1724083832564,-392918.7369,0.000106,2]
[335295140,1724083832573,-726.451,0.000106,2]
[335295141,1724083832582,-4541.454,0.000106,2]
[335295142,1724083832591,-835.58,0.000106,2]
[335295143,1724083832599,-215.57492419,0.000106,2]
[335295144,1724083832609,-180.528769,0.00010622,2]
[335295145,1724083832618,-500.0,0.00010684,2]
[335295146,1724083832629,-746.04243668,0.00010684,2]
[335295147,1724083832641,-500.0,0.00010684,2]
[335295148,1724083832653,-500.0,0.00010684,2]
[335295149,1724083832664,-500.0,0.00010684,2]
[335295150,1724083832676,-500.0,0.00010684,2]
[335295151,1724083832690,-500.0,0.00010684,2]
[335295152,1724083832702,-500.0,0.00010684,2]
[335295154,1724083832711,-500.0,0.00010684,2]
[335295156,1724083832721,-500.0,0.00010684,2]
[335295158,1724083832733,-500.0,0.00010684,2]
[335295160,1724083832744,-1239.44,0.00010684,2]
[335295161,1724083832755,-500.0,0.00010684,2]
[335295162,1724083832766,-500.0,0.00010684,2]
[335295163,1724083832778,-500.0,0.00010684,2]
[335295164,1724083832789,-500.0,0.00010684,2]
[335295165,1724083832800,-324.72916656,0.00010684,2]
[335295166,1724083832812,-500.0,0.00010684,2]
[335295167,1724083832823,-500.0,0.00010684,2]
[335295168,1724083832835,-500.0,0.00010684,2]
[335295169,1724083832846,-500.0,0.00010684,2]
[335295170,1724083832858,-500.0,0.00010684,2]
[335295171,1724083832871,-1239.44,0.00010696,2]
[335295172,1724083832881,-500.0,0.00010696,2]
[335295173,1724083832892,-500.0,0.00010696,2]
[335295174,1724083832903,-150.99,0.00010697,2]
[335295175,1724083832913,-164.95884238,0.00010697,2]
[335295176,1724083832924,-500.0,0.00010699,2]
[335295177,1724083832935,-500.0,0.00010699,2]
[335295178,1724083832946,-500.0,0.00010699,2]
[335295179,1724083832957,-249.6,0.00010699,2]
[335295180,1724083832968,-500.0,0.00010699,2]
[335295181,1724083832979,-500.0,0.00010699,2]
[335295182,1724083832990,-500.0,0.00010699,2]
[335295183,1724083833000,-500.0,0.00010699,2]
[335295184,1724083833011,-500.0,0.00010699,2]
[335295185,1724083833021,-500.0,0.00010699,2]
[335295186,1724083833031,-500.0,0.00010699,2]
[335295187,1724083833045,-500.0,0.00010699,2]
[335295188,1724083833056,-500.0,0.00010699,2]
[335295189,1724083833068,-500.0,0.00010699,2]
[335295190,1724083833079,-500.0,0.00010699,2]
[335295191,1724083833091,-500.0,0.00010699,2]
[335295192,1724083833103,-500.0,0.00010699,2]
[335295193,1724083833115,-500.0,0.00010699,2]
[335295194,1724083833128,-500.0,0.00010699,2]
[335295195,1724083833140,-500.0,0.00010699,2]
[335295196,1724083833151,-1239.44,0.00010699,2]
[335295197,1724083833163,-500.0,0.00010699,2]
[335295198,1724083833175,-500.0,0.00010699,2]
[335295199,1724083833189,-500.0,0.00010699,2]
[335295200,1724083833200,-500.0,0.00010699,2]
[335295201,1724083833212,-500.0,0.00010699,2]
[335295202,1724083833224,-500.0,0.00010699,2]
[335295203,1724083833236,-500.0,0.00010699,2]
[335295204,1724083833247,-500.0,0.00010699,2]
[335295205,1724083833258,-500.0,0.00010699,2]
[335295206,1724083833269,-344.40546939,0.00010699,2]
[335295207,1724083833279,-500.0,0.00010699,2]
[335295208,1724083833290,-500.0,0.00010699,2]
[335295209,1724083833300,-500.0,0.00010699,2]
[335295210,1724083833311,-500.0,0.000107,2]
[335295211,1724083833323,-745.2683,0.000107,2]
[335295212,1724083833334,-100000.0,0.000107,2]
[335295213,1724083833347,-2718.59332855,0.000107,2]
[335295214,1724083833361,-148812.1225,0.000107,2]
[335295215,1724083833375,-919.70999,0.000107,2]
[335295216,1724083833387,-9673.93556567,0.000107,2]
[335295217,1724083833399,-42198.917706,0.000107,2]
[335295218,1724083833414,-404.4999995,0.000107,2]
[335295219,1724083833428,-3132.3393828,0.000107,2]
[335295220,1724083833443,-19095.13091995,0.000107,2]
[335295221,1724083833456,-500.0,0.000107,2]
[335295222,1724083833472,-3164.75000067,0.000107,2]
[335295223,1724083833484,-13198.17390686,0.000107,2]
[335295224,1724083833495,-443.0937,0.000107,2]
[335295225,1724083833506,-3255.9473,0.000107,2]
[335295226,1724083833517,-444.7,0.000107,2]
[335295227,1724083833527,-1500.0,0.00010716,2]
[335295228,1724083833539,-300.0,0.00010733,2]
[335295229,1724083833550,-1570.61672021,0.00010737,2]
[335295230,1724083833561,-215.57492419,0.00010746,2]
[335295231,1724083833572,-153.18864,0.00010771,2]
[335295232,1724083833583,-1500.0,0.00010773,2]
[335295233,1724083833593,-280.44764841,0.00010799,2]
[335295234,1724083833604,-500.0,0.00010799,2]
[335295235,1724083833615,-500.0,0.00010799,2]
[335295236,1724083833625,-500.0,0.00010799,2]
[335295237,1724083833636,-555.84473479,0.00010799,2]
[335295238,1724083833647,-500.0,0.00010799,2]
[335295239,1724083833658,-226.088955,0.00010799,2]
[335295240,1724083833669,-848.34,0.00010799,2]
[335295241,1724083833680,-848.34,0.00010799,2]
[335295242,1724083833693,-848.34,0.00010799,2]
[335295243,1724083833703,-848.34,0.00010799,2]
[335295244,1724083833714,-848.34,0.00010799,2]
[335295245,1724083833726,-848.34,0.00010799,2]
[335295246,1724083833737,-500.0,0.00010799,2]
[335295247,1724083833748,-500.0,0.00010799,2]
[335295248,1724083833760,-500.0,0.00010799,2]
[335295249,1724083833772,-500.0,0.00010799,2]
[335295250,1724083833783,-500.0,0.00010799,2]
[335295251,1724083833795,-500.0,0.00010799,2]
[335295252,1724083833806,-1023.35288987,0.00010799,2]
[335295253,1724083833818,-500.0,0.00010799,2]
[335295254,1724083833830,-500.0,0.00010799,2]
[335295255,1724083833842,-500.0,0.00010799,2]
[335295256,1724083833853,-500.0,0.00010799,2]
[335295257,1724083833865,-500.0,0.00010799,2]
[335295258,1724083833875,-500.0,0.00010799,2]
[335295259,1724083833886,-500.0,0.00010799,2]
[335295260,1724083833898,-500.0,0.00010799,2]
[335295261,1724083833908,-500.0,0.00010799,2]
[335295262,1724083833919,-500.0,0.00010799,2]
[335295263,1724083833930,-8151.15132475,0.000108,2]
[335295264,1724083833943,-401.51974171,0.000108,2]
[335295265,1724083833954,-300.0,0.00010816,2]
[335295266,1724083833965,-337.165,0.00010818,2]
[335295267,1724083833976,-155.0,0.00010852,2]
[335295268,1724083833986,-155.0,0.00010852,2]
[335295269,1724083833997,-255.29819999,0.00010861,2]
[335295270,1724083834008,-848.34,0.00010869,2]
[335295271,1724083834018,-500.0,0.00010869,2]
[335295272,1724083834028,-500.0,0.00010869,2]
[335295273,1724083834039,-159.05816,0.0001087,2]
[335295274,1724083834050,-1500.0,0.00010873,2]
[335295275,1724083834062,-848.34,0.00010879,2]
[335295276,1724083834072,-500.0,0.00010879,2]
[335295277,1724083834083,-500.0,0.00010879,2]
[335295278,1724083834094,-438.30021,0.00010888,2]
[335295279,1724083834105,-159.800661,0.00010888,2]
[335295280,1724083834116,-187.623555,0.00010888,2]
[335295281,1724083834127,-203.983616,0.00010888,2]
[335295282,1724083834138,-155.635153,0.00010888,2]
[335295283,1724083834149,-183.688516,0.00010888,2]
[335295284,1724083834160,-771.93719101,0.0001089,2]
[335295285,1724083834173,-1521.76221221,0.0001089,2]
[335295286,1724083834190,-250.0,0.0001089,2]
[335295287,1724083834202,-347.96815075,0.0001089,2]
[335295288,1724083834214,-704.92261432,0.0001089,2]
[335295289,1724083834227,-693.15483171,0.0001089,2]
[335295290,1724083834237,-1639.17495784,0.0001089,2]
[335295291,1724083834250,-713.07366266,0.0001089,2]
[335295292,1724083834262,-893.59727248,0.0001089,2]
[335295293,1724083834274,-389.16724031,0.0001089,2]
[335295298,1724083838314,-1915.34359164,9.994e-05,2]
[335295299,1724083838324,-2739.61953311,0.0001089,2]
[335295307,1724083839297,-1989.47898931,0.0001089,2]
[335295308,1724083839309,-253.7732008,0.0001089,2]
[335295309,1724083839321,-618.74932003,0.0001089,2]
[335295310,1724083839336,-2118.48446416,0.0001089,2]
[335295311,1724083839348,-325.88,0.0001089,2]
[335295312,1724083839359,-59.61986317,0.0001089,2]
[335295313,1724083839368,-184.62182622,0.00010891,2]
[335295314,1724083839378,-172.26639675,0.00010892,2]
[335295315,1724083839387,-152.79080494,0.00010892,2]
[335295316,1724083839397,-215.57492419,0.00010892,2]
[335295317,1724083839407,-848.34,0.00010898,2]
[335295318,1724083839417,-500.0,0.00010898,2]
[335295319,1724083839427,-500.0,0.00010898,2]
[335295320,1724083839437,-848.34,0.00010899,2]
[335295322,1724083839447,-500.0,0.00010899,2]
[335295324,1724083839457,-500.0,0.00010899,2]
[335295326,1724083839467,-600.0,0.000109,2]
[335295328,1724083839477,-178.9088921,0.000109,2]
[335295330,1724083839487,-178.90889209,0.000109,2]
[335295332,1724083839497,-1000.0,0.000109,2]
[335295334,1724083839506,-3312.66736103,0.000109,2]
[335295336,1724083839515,-157.65936862,0.000109,2]
[335295338,1724083839525,-297.93136062,0.00010907,2]
[335295340,1724083839534,-208.41,0.00010952,2]
[335295342,1724083839543,-493.92566832,0.00010958,2]
[335295344,1724083839553,-628.90948244,0.00010958,2]
[335295346,1724083839562,-201.02918126,0.00010958,2]
[335295348,1724083839571,-183.58678307,0.00010958,2]
[335295350,1724083839581,-165.01321693,0.00010958,2]
[335295351,1724083839590,-250.0,0.00010959,2]
[335295353,1724083839600,-1500.0,0.00010959,2]
[335295355,1724083839609,-1500.0,0.0001096,2]
[335295357,1724083839618,-844.34548244,0.00010968,2]
[335295359,1724083839630,-655.65451756,0.00010968,2]
[335295361,1724083839639,-771.59897495,0.00010978,2]
[335295364,1724083839651,-1299.07338171,0.00010978,2]
[335295366,1724083839663,-8208.53520196,0.00010978,2]
[335295368,1724083839674,-1038.34,0.00010978,2]
[335295371,1724083839705,-2941.18766454,0.00010978,2]
[335295373,1724083839715,-155.57946219,0.00010979,2]
[335295375,1724083839725,-1000.0,0.00010979,2]
[335295377,1724083839736,-500.0,0.00010979,2]
[335295379,1724083839747,-21587.59743236,0.0001098,2]
[335295381,1724083839757,-742.0,0.0001098,2]
[335295383,1724083839767,-742.0,0.0001098,2]
[335295385,1724083839777,-742.0,0.0001098,2]
[335295387,1724083839787,-742.0,0.0001098,2]
[335295389,1724083839797,-742.0,0.0001098,2]
[335295391,1724083839807,-742.0,0.0001098,2]
[335295393,1724083839816,-742.0,0.0001098,2]
[335295395,1724083839826,-742.0,0.0001098,2]
[335295397,1724083839836,-742.0,0.0001098,2]
[335295399,1724083839846,-742.0,0.0001098,2]
[335295401,1724083839855,-2000.0,0.0001098,2]
[335295403,1724083839865,-200.0,0.0001098,2]
[335295405,1724083839875,-200.0,0.0001098,2]
[335295407,1724083839886,-593.6193416,0.0001098,2]
[335295409,1724083839896,-221.0177775,0.0001098,2]
[335295411,1724083839906,-3804.2254695,0.0001098,2]
[335295413,1724083839916,-1239.44,0.00010987,2]
[335295415,1724083839926,-283.37,0.00010987,2]
[335295417,1724083839940,-848.34,0.00010988,2]
[335295419,1724083839950,-500.0,0.00010988,2]
[335295421,1724083839959,-500.0,0.00010988,2]
[335295423,1724083839969,-500.0,0.00010988,2]
[335295425,1724083839979,-500.0,0.00010988,2]
[335295427,1724083839989,-500.0,0.00010988,2]
[335295429,1724083839999,-500.0,0.00010988,2]
[335295430,1724083840008,-500.0,0.00010988,2]
[335295432,1724083840018,-500.0,0.00010988,2]
[335295434,1724083840028,-500.0,0.00010988,2]
[335295436,1724083840037,-500.0,0.00010988,2]
[335295438,1724083840047,-500.0,0.00010988,2]
[335295440,1724083840059,-500.0,0.00010988,2]
[335295443,1724083840068,-500.0,0.00010988,2]
[335295446,1724083840077,-500.0,0.00010988,2]
[335295448,1724083840087,-500.0,0.00010988,2]
[335295450,1724083840097,-500.0,0.00010988,2]
[335295452,1724083840107,-239.48,0.00010989,2]
[335295454,1724083840116,-848.34,0.00010989,2]
[335295455,1724083840126,-848.34,0.00010989,2]
[335295457,1724083840135,-848.34,0.00010989,2]
[335295459,1724083840144,-848.34,0.00010989,2]
[335295461,1724083840154,-848.34,0.00010989,2]
[335295463,1724083840163,-848.34,0.00010989,2]
[335295465,1724083840173,-848.34,0.00010989,2]
[335295467,1724083840184,-848.34,0.00010989,2]
[335295469,1724083840199,-500.0,0.00010989,2]
[335295471,1724083840209,-500.0,0.00010989,2]
[335295473,1724083840219,-500.0,0.00010989,2]
[335295475,1724083840229,-500.0,0.00010989,2]
[335295477,1724083840238,-500.0,0.00010989,2]
[335295479,1724083840247,-500.0,0.00010989,2]
[335295481,1724083840256,-500.0,0.00010989,2]
[335295483,1724083840265,-500.0,0.00010989,2]
[335295485,1724083840274,-500.0,0.00010989,2]
[335295488,1724083840284,-500.0,0.00010989,2]
[335295491,1724083840294,-500.0,0.00010989,2]
[335295494,1724083840304,-500.0,0.00010989,2]
[335295497,1724083840313,-500.0,0.00010989,2]
[335295500,1724083840322,-500.0,0.00010989,2]
[335295502,1724083840331,-512.42946099,0.00010989,2]
[335295504,1724083840341,-416.5,0.00010989,2]
[335295506,1724083840351,-500.0,0.00010989,2]
[335295508,1724083840361,-500.0,0.00010989,2]
[335295510,1724083840370,-500.0,0.00010989,2]
[335295512,1724083840380,-500.0,0.00010989,2]
[335295514,1724083840389,-500.0,0.00010989,2]
[335295516,1724083840399,-500.0,0.00010989,2]
[335295518,1724083840409,-500.0,0.00010989,2]
[335295520,1724083840419,-500.0,0.00010989,2]
[335295521,1724083840428,-500.0,0.00010989,2]
[335295522,1724083840439,-500.0,0.00010989,2]
[335295524,1724083840449,-500.0,0.00010989,2]
[335295525,1724083840458,-500.0,0.00010989,2]
[335295526,1724083840467,-1239.44,0.00010989,2]
[335295527,1724083840477,-1239.44,0.00010989,2]
[335295528,1724083840486,-500.0,0.00010989,2]
[335295529,1724083840495,-500.0,0.00010989,2]
[335295530,1724083840504,-500.0,0.00010989,2]
[335295531,1724083840514,-500.0,0.00010989,2]
[335295532,1724083840523,-500.0,0.00010989,2]
[335295533,1724083840533,-500.0,0.00010989,2]
[335295534,1724083840543,-500.0,0.00010989,2]
[335295535,1724083840554,-500.0,0.00010989,2]
[335295536,1724083840563,-500.0,0.00010989,2]
[335295537,1724083840573,-500.0,0.00010989,2]
[335295538,1724083840582,-500.0,0.00010989,2]
[335295539,1724083840592,-500.0,0.00010989,2]
[335295540,1724083840602,-655.0,0.0001099,2]
[335295541,1724083840613,-46652.81339131,0.0001099,3]
[335295542,1724083840626,-3513.2,0.0001099,3]
[335295543,1724083840637,-94909.66814021,0.0001099,3]
[335295544,1724083840649,-5026.55103936,0.0001099,3]
[335295545,1724083840661,-1044.62063914,0.0001099,3]
[335295546,1724083840672,-2515.47398675,0.0001099,3]
[335295547,1724083840685,-825.10387311,0.0001099,3]
[335295548,1724083840767,-722.19529931,9.999e-05,2]
[335295549,1724083840778,-1193.14829233,9.999e-05,2]
[335295550,1724083840788,-155.0,0.00010888,2]
[335295551,1724083840799,-40343.25304119,0.0001099,3]
[335295552,1724083840811,-15237.17741995,0.0001099,3]
[335295553,1724083840822,-4302.89567398,0.0001099,3]
[335295554,1724083840838,-1367.76559331,0.0001099,3]
[335295555,1724083840849,-1660.78979343,0.0001099,3]
[335295556,1724083840864,-1873.3,0.0001099,3]
[335295557,1724083840875,-405.59229244,0.0001099,3]
[335295558,1724083840887,-10114.15909603,0.0001099,3]
[335295559,1724083840898,-618.21020381,0.0001099,3]
[335295560,1724083840910,-322.56152394,0.0001099,3]
[335295561,1724083840920,-6356.23636126,0.0001099,3]
[335295562,1724083840931,-1568.29552831,0.0001099,3]
[335295564,1724083840949,-3705.05,0.0001099,3]
[335295566,1724083840960,-3504.1443,0.0001099,3]
[335295568,1724083840971,-449.03088406,0.0001099,3]
[335295570,1724083840982,-685.08301683,0.0001099,3]
[335295572,1724083840993,-582.27256892,0.0001099,3]
[335295574,1724083841005,-335.07251721,0.0001099,3]
[335295576,1724083841016,-25518.21873025,0.0001099,3]
[335295578,1724083841027,-3868.2,0.0001099,3]
[335295580,1724083841042,-1115.35694092,0.0001099,3]
[335295583,1724083841058,-1072.66280005,0.0001099,3]
[335295652,1724083843475,-377.11693109,0.0001099,3]
[335295653,1724083843585,-265.6000002,0.0001099,3]
[335295654,1724083843596,-1079.31918,0.0001099,3]
[335295656,1724083844306,-653.31270692,0.0001099,3]
[335295657,1724083844325,-431.24423708,0.00010684,2]
[335295659,1724083846387,-68.75576292,0.00010684,2]
[335295660,1724083846396,-568.76923708,0.00010696,2]
[335295661,1724083846408,-51.04076292,0.00010696,2]
[335295662,1724083846418,-323.27790456,0.00010892,2]
[335295663,1724083846427,-147.70031524,0.0001098,2]
[335295664,1724083846496,-1264.7968584,0.0001098,2]
[335295665,1724083846507,-494.46457636,0.0001098,2]
[335295666,1724083846516,-2874.31906734,0.0001099,3]
[335295667,1724083846527,-1900.0,0.0001099,3]
[335295668,1724083846538,-973.24910627,0.0001099,3]
[335295669,1724083846558,-685.19969759,0.0001079,2]
[335295670,1724083846567,-668.30843146,0.0001099,3]
[335295671,1724083846578,-859.71593629,0.0001099,3]
[335295672,1724083846589,-6271.4,0.0001099,3]
[335295673,1724083846600,-644.28818466,0.0001099,3]
[335295674,1724083846611,-166760.52250387,0.0001099,3]
[335295675,1724083846620,-221.0177775,0.00010992,2]
[335295676,1724083846629,-221.0177775,0.00010992,2]
[335295677,1724083846639,-221.0177775,0.00010992,2]
[335295678,1724083846648,-221.0177775,0.00010992,2]
[335295679,1724083846658,-221.0177775,0.00010992,2]
[335295680,1724083846667,-4951.2308058,0.00010992,2]
[335295681,1724083846677,-6098.236142,0.00010992,2]
[335295682,1724083846686,-7245.2414783,0.00010992,2]
[335295683,1724083846696,-8392.2468145,0.00010992,2]
[335295684,1724083846706,-9539.2521508,0.00010992,2]
[335295685,1724083846716,-1605.2413029,0.00010992,2]
[335295686,1724083846726,-1303.5208558,0.00010992,2]
[335295687,1724083846737,-1001.8004087,0.00010992,2]
[335295688,1724083846747,-700.0799616,0.00010992,2]
[335295689,1724083846757,-164.95884238,0.00010997,2]
[335295690,1724083846767,-438.30021,0.00010998,2]
[335295691,1724083846776,-187.623555,0.00010998,2]
[335295692,1724083846785,-155.635153,0.00010998,2]
[335295693,1724083846795,-2259.0,0.00010999,2]
[335295694,1724083846803,-1010.1573,0.00010999,2]
[335295695,1724083846812,-1000.0,0.00010999,2]
[335295696,1724083846821,-150.0,0.00010999,2]
[335295697,1724083846831,-1118.65632901,0.00010999,3]
[335295698,1724083846841,-438.30021,0.00010999,2]
[335295699,1724083846853,-438.30021,0.00010999,2]
[335295700,1724083846864,-438.30021,0.00010999,2]
[335295701,1724083846873,-438.30021,0.00010999,2]
[335295702,1724083846882,-438.30021,0.00010999,2]
[335295703,1724083846891,-438.30021,0.00010999,2]
[335295704,1724083846900,-438.30021,0.00010999,2]
[335295705,1724083846910,-438.30021,0.00010999,2]
[335295706,1724083846920,-438.30021,0.00010999,2]
[335295707,1724083846931,-438.30021,0.00010999,2]
[335295708,1724083846943,-187.623555,0.00010999,2]
[335295709,1724083846956,-187.623555,0.00010999,2]
[335295710,1724083846965,-187.623555,0.00010999,2]
[335295711,1724083846975,-187.623555,0.00010999,2]
[335295712,1724083846984,-187.623555,0.00010999,2]
[335295713,1724083846993,-187.623555,0.00010999,2]
[335295714,1724083847002,-187.623555,0.00010999,2]
[335295715,1724083847011,-187.623555,0.00010999,2]
[335295716,1724083847020,-187.623555,0.00010999,2]
[335295717,1724083847029,-187.623555,0.00010999,2]
[335295718,1724083847039,-155.635153,0.00010999,2]
[335295719,1724083847051,-155.635153,0.00010999,2]
[335295720,1724083847061,-155.635153,0.00010999,2]
[335295721,1724083847070,-155.635153,0.00010999,2]
[335295722,1724083847079,-155.635153,0.00010999,2]
[335295723,1724083847090,-155.635153,0.00010999,2]
[335295724,1724083847099,-155.635153,0.00010999,2]
[335295725,1724083847108,-155.635153,0.00010999,2]
[335295726,1724083847117,-155.635153,0.00010999,2]
[335295727,1724083847129,-155.635153,0.00010999,2]
[335295728,1724083847138,-848.34,0.00010999,2]
[335295729,1724083847147,-848.34,0.00010999,2]
[335295730,1724083847157,-848.34,0.00010999,2]
[335295731,1724083847166,-848.34,0.00010999,2]
[335295732,1724083847176,-848.3640097,0.00010999,2]
[335295733,1724083847185,-500.0,0.00010999,2]
[335295734,1724083847196,-153.7,0.00010999,2]
[335295735,1724083847205,-500.0,0.00010999,2]
[335295736,1724083847215,-500.0,0.00010999,2]
[335295737,1724083847224,-615.07955565,0.00010999,2]
[335295738,1724083847234,-183.688516,0.00010999,2]
[335295739,1724083847244,-514.47589011,0.00010999,2]
[335295740,1724083847253,-500.0,0.00010999,2]
[335295741,1724083847262,-500.0,0.00010999,2]
[335295742,1724083847271,-500.0,0.00010999,2]
[335295743,1724083847281,-500.0,0.00010999,2]
[335295744,1724083847290,-500.0,0.00010999,2]
[335295745,1724083847299,-500.0,0.00010999,2]
[335295746,1724083847309,-500.0,0.00010999,2]
[335295747,1724083847318,-500.0,0.00010999,2]
[335295748,1724083847327,-397.61005678,0.00010999,2]
[335295749,1724083847337,-500.0,0.00010999,2]
[335295750,1724083847346,-500.0,0.00010999,2]
[335295751,1724083847356,-500.0,0.00010999,2]
[335295752,1724083847365,-500.0,0.00010999,2]
[335295753,1724083847375,-500.0,0.00010999,2]
[335295754,1724083847384,-500.0,0.00010999,2]
[335295755,1724083847393,-500.0,0.00010999,2]
[335295756,1724083847402,-500.0,0.00010999,2]
[335295757,1724083847412,-500.0,0.00010999,2]
[335295758,1724083847421,-500.10018001,0.00010999,2]
[335295759,1724083847431,-500.0,0.00010999,2]
[335295760,1724083847441,-500.0,0.00010999,2]
[335295761,1724083847451,-500.0,0.00010999,2]
[335295762,1724083847461,-500.0,0.00010999,2]
[335295763,1724083847470,-499.72378959,0.00010999,2]
[335295764,1724083847479,-500.0,0.00010999,2]
[335295765,1724083847489,-500.0,0.00010999,2]
[335295766,1724083847498,-500.0,0.00010999,2]
[335295767,1724083847507,-500.0,0.00010999,2]
[335295768,1724083847517,-500.0,0.00010999,2]
[335295769,1724083847527,-199.15639016,0.00010999,2]
[335295770,1724083847537,-500.0,0.00010999,2]
[335295771,1724083847546,-500.0,0.00010999,2]
[335295772,1724083847555,-203.47104578,0.00010999,2]
[335295773,1724083847565,-500.0,0.00010999,2]
[335295774,1724083847574,-500.0,0.00010999,2]
[335295775,1724083847583,-500.0,0.00010999,2]
[335295776,1724083847592,-500.0,0.00010999,2]
[335295777,1724083847602,-500.0,0.00010999,2]
[335295778,1724083847612,-500.0,0.00010999,2]
[335295779,1724083847622,-500.0,0.00010999,2]
[335295780,1724083847631,-500.0,0.00010999,2]
[335295781,1724083847640,-500.0,0.00010999,2]
[335295782,1724083847650,-499.20294803,0.00010999,2]
[335295783,1724083847659,-1239.44,0.00010999,2]
[335295784,1724083847668,-1239.44,0.00010999,2]
[335295785,1724083847677,-1239.44,0.00010999,2]
[335295786,1724083847687,-1239.44,0.00010999,2]
[335295787,1724083847698,-1239.44,0.00010999,2]
[335295788,1724083847707,-1239.44,0.00010999,2]
[335295789,1724083847716,-1239.44,0.00010999,2]
[335295790,1724083847725,-1239.44,0.00010999,2]
[335295791,1724083847735,-1239.44,0.00010999,2]
[335295792,1724083847744,-1239.44,0.00010999,2]
[335295793,1724083847754,-1239.44,0.00010999,2]
[335295794,1724083847763,-1239.44,0.00010999,2]
[335295795,1724083847799,-1239.44,0.00010999,2]
[335295796,1724083847809,-1239.44,0.00010999,2]
[335295797,1724083847819,-1239.44,0.00010999,2]
[335295798,1724083847828,-1239.44,0.00010999,2]
[335295799,1724083847838,-1239.44,0.00010999,2]
[335295800,1724083847847,-1239.45,0.00010999,2]
[335295801,1724083847856,-500.0,0.00010999,2]
[335295802,1724083847865,-500.0,0.00010999,2]
[335295803,1724083847875,-500.0,0.00010999,2]
[335295804,1724083847884,-500.0,0.00010999,2]
[335295805,1724083847893,-500.0,0.00010999,2]
[335295806,1724083847902,-500.0,0.00010999,2]
[335295807,1724083847912,-500.0,0.00010999,2]
[335295808,1724083847921,-500.0,0.00010999,2]
[335295809,1724083847931,-500.0,0.00010999,2]
[335295810,1724083847940,-549.33620102,0.00010999,2]
[335295811,1724083847949,-500.0,0.00010999,2]
[335295812,1724083847959,-500.0,0.00010999,2]
[335295813,1724083847968,-500.0,0.00010999,2]
[335295814,1724083847978,-500.0,0.00010999,2]
[335295815,1724083847987,-500.0,0.00010999,2]
[335295816,1724083847996,-500.0,0.00010999,2]
[335295817,1724083848006,-500.0,0.00010999,2]
[335295818,1724083848015,-500.0,0.00010999,2]
[335295819,1724083848025,-500.0,0.00010999,2]
[335295820,1724083848035,-500.0,0.00010999,2]
[335295821,1724083848044,-500.0,0.00010999,2]
[335295822,1724083848058,-500.0,0.00010999,2]
[335295823,1724083848069,-500.0,0.00010999,2]
[335295824,1724083848078,-500.0,0.00010999,2]
[335295825,1724083848087,-226.04,0.00010999,2]
[335295826,1724083848098,-500.0,0.00010999,2]
[335295827,1724083848107,-500.0,0.00010999,2]
[335295828,1724083848117,-500.0,0.00010999,2]
[335295829,1724083848128,-500.0,0.00010999,2]
[335295830,1724083848138,-500.0,0.00010999,2]
[335295831,1724083848147,-500.0,0.00010999,2]
[335295832,1724083848157,-500.0,0.00010999,2]
[335295833,1724083848166,-500.0,0.00010999,2]
[335295834,1724083848176,-500.0,0.00010999,2]
[335295835,1724083848185,-500.0,0.00010999,2]
[335295836,1724083848195,-500.0,0.00010999,2]
[335295837,1724083848205,-500.0,0.00010999,2]